Workbook

Sheet Predimensionamiento
A3: Grupo Crixuz Ingenieria y Construccion S.A.C.
B4: Cel: | C4: #942656792
B5: Correo: | C5: grupo_crixuz@hotmail.com
B6: G. General : | C6: Max J. Cardenas Alarcon
A7: Hoja de cálculo que se distribuye de manera condicional, dar el crédito a Crixuz Ingenieria y Construccion SAC, no se tienen restricciones adicionales
A11: PREDIMENSIONAMIENTO DE VIGAS Y COLUMNAS
A13: 01 | B13: PREDIMENSIONAMIENTO DE VIGAS
B15: El momento flector último de una sección cualquiera puede expresarse como sigue:
D17: Mu = ( Wu*B )*Ln2/α | I17: (1)
B19: Donde:
B21: Wu = | C21: Carga por unidad de área
B22: Ln = | C22: Longitud libre
B23: B = | C23: Dimension transversal tributaria
B24: α = | C24: Coeficiente de momento
B26: Para una sección rectangular con acero solo en la parte de
B27: tracción, de acuerdo al ACI 318-14 se tiene:
C29: Mu = Ø*f'c*b*d2*w*(1-0.59w) | I29: (2)
D31: w = ρ*fy / f'c | I31: (3)
B33: De las expresiones (1) y (2), tenemos
B35: ( Wu*B )*Ln2/α = Ø*f'c*b*d2*w*(1-0.59w) | I35: (4)
B37: De donde:
B39: d = Ln * [ (Wu*B) / (α*Ø*f'c*b*w*(1-0.59w)) ]1/2 | I39: (5)
B41: Considerando que la sección se ubica en la zona de momento positivo máximo, asumimos:
B43: α = | C43: 16 | E43: (Depende de ubicación y apoyo) | J43: Ø = | K43: 0.9 | M43: (Factor reducción para flexion)
B44: f'c = | C44: 210 | E44: kg/cm2 | J44: fy = | K44: 4200 | M44: kg/cm2
B45: ρ = | C45: 0.007 | E45: (0.7%) cuantia de acero
B47: w = | C47: ρ*fy / f'c = | E47: =+C45*K44/C44 -> 0.14 | J47: b = | K47: B / 20 | M47: (Base de la viga)
B48: Wu = | C48: Carga ultima, | E48: en kg/cm2 | J48: d = | K48: h / 1.1 | M48: (Peralte efectivo de la viga)
C50: h / 1.1 = Ln * [ (Wu*B) / (16*0.9*210*(B/20)*0.14*(1-0.59*0.14)) ]1/2 | P50: (6)
B52: De donde obtenemos: | J52: Redondeando los valores obtenemos:
C54: h = | D54: Ln | H54: (7) | K54: h = | L54: Ln | P54: (8)
D55: =(SQRT(C43*K43*C44*E47*(1-0.59*E47)/20))/1.1 -> 4.01 | E55: / Wu1/ 2 | L55: =+ROUND(D55,0) -> 4 | M55: / Wu1/ 2
B57: A partir de la ecuacion (8), obtendremos el valor de Wu, para distintos usos:
A59: Bloque | B59: Carga viva minima repartida (E020) | F59: Espesor aligerado | H59: Acabado | I59: Tabique | J59: Ln ó Lv | K59: B ó Bv | L59: Tipo de | M59: Ancho | N59: Altura | O59: Zona | P59: Ancho | Q59: Altura
A60: Eje | B60: Ocupacion o uso | E60: kg/m2 | F60: Altura | G60: kg/m2 | H60: kg/m2 | I60: kg/m2 | J60: (m) | K60: (m) | L60: Viga | M60: viga (m) | N60: viga (m) | O60: sismica | P60: viga (m) | Q60: viga (m)
A61: Block-A | B61: Colegios. | E61: =+VLOOKUP(B62,Hoja2!$B$5:$C$81,2,FALSE) -> 250 | F61: 0.25 m | G61: =+VLOOKUP(F61,Hoja2!$J$3:$K$7,2,FALSE) -> 350 | H61: 100 | I61: 150 | J61: 5.00 | K61: 4.5 | L61: Central | M61: =+IF(L61="Perimetrica",(K61*0.5+0.125+(950/(E61+G61+H61+I61)))/20,IF(L61="Central",K61/20,K61/20)) -> 0.23 | N61: =+IFERROR(IF(L61="Perimetrica",(K61*0.5+0.125+(950/(E61+G61+H61+I61)))/(3/(SQRT((1.4*(G61+H61+I61)+1.7*E61)/10000))),IF(L61="Central",J61/(4/(SQRT((1.4*(G61+H61+I61)+1.7*E61)/10000))),1.4*2*J61/(4/(SQRT((1.4*(G61+H61+I61)+1.7*E61)/10000))))),) -> 0.44 | O61: Alta | P61: 0.25 | Q61: =+IFERROR(IF(O61="Alta",MROUND((M61*N61*N61*N61/P61)^(1/3),0.05),MROUND((M61*N61*N61/P61)^(1/2),0.05)),) -> 0.45
A62: 4-4 | B62: Aulas
A63: -- | B63: Ninguno. | E63: =+VLOOKUP(B64,Hoja2!$B$5:$C$81,2,FALSE) -> 0 | F63: Ninguna | G63: =+VLOOKUP(F63,Hoja2!$J$3:$K$7,2,FALSE) -> 0 | H63: 0 | I63: 0 | J63: 0.00 | K63: 0 | L63: Central | M63: =+IF(L63="Perimetrica",(K63*0.5+0.125+(950/(E63+G63+H63+I63)))/20,IF(L63="Central",K63/20,K63/20)) -> 0.00 | N63: =+IFERROR(IF(L63="Perimetrica",(K63*0.5+0.125+(950/(E63+G63+H63+I63)))/(3/(SQRT((1.4*(G63+H63+I63)+1.7*E63)/10000))),IF(L63="Central",J63/(4/(SQRT((1.4*(G63+H63+I63)+1.7*E63)/10000))),1.4*2*J63/(4/(SQRT((1.4*(G63+H63+I63)+1.7*E63)/10000))))),) -> 0.00 | O63: Normal | P63: 0.00 | Q63: =+IFERROR(IF(O63="Alta",MROUND((M63*N63*N63*N63/P63)^(1/3),0.05),MROUND((M63*N63*N63/P63)^(1/2),0.05)),) -> 0.00
A64: -- | B64: Sin Selección
A65: -- | B65: Ninguno. | E65: =+VLOOKUP(B66,Hoja2!$B$5:$C$81,2,FALSE) -> 0 | F65: Ninguna | G65: =+VLOOKUP(F65,Hoja2!$J$3:$K$7,2,FALSE) -> 0 | H65: 0 | I65: 0 | J65: 0.00 | K65: 0 | L65: Central | M65: =+IF(L65="Perimetrica",(K65*0.5+0.125+(950/(E65+G65+H65+I65)))/20,IF(L65="Central",K65/20,K65/20)) -> 0.00 | N65: =+IFERROR(IF(L65="Perimetrica",(K65*0.5+0.125+(950/(E65+G65+H65+I65)))/(3/(SQRT((1.4*(G65+H65+I65)+1.7*E65)/10000))),IF(L65="Central",J65/(4/(SQRT((1.4*(G65+H65+I65)+1.7*E65)/10000))),1.4*2*J65/(4/(SQRT((1.4*(G65+H65+I65)+1.7*E65)/10000))))),) -> 0.00 | O65: Normal | P65: 0.00 | Q65: =+IFERROR(IF(O65="Alta",MROUND((M65*N65*N65*N65/P65)^(1/3),0.05),MROUND((M65*N65*N65/P65)^(1/2),0.05)),) -> 0.00
A66: -- | B66: Sin Selección
A67: -- | B67: Ninguno. | E67: =+VLOOKUP(B68,Hoja2!$B$5:$C$81,2,FALSE) -> 0 | F67: Ninguna | G67: =+VLOOKUP(F67,Hoja2!$J$3:$K$7,2,FALSE) -> 0 | H67: 0 | I67: 0 | J67: 0.00 | K67: 0 | L67: Central | M67: =+IF(L67="Perimetrica",(K67*0.5+0.125+(950/(E67+G67+H67+I67)))/20,IF(L67="Central",K67/20,K67/20)) -> 0.00 | N67: =+IFERROR(IF(L67="Perimetrica",(K67*0.5+0.125+(950/(E67+G67+H67+I67)))/(3/(SQRT((1.4*(G67+H67+I67)+1.7*E67)/10000))),IF(L67="Central",J67/(4/(SQRT((1.4*(G67+H67+I67)+1.7*E67)/10000))),1.4*2*J67/(4/(SQRT((1.4*(G67+H67+I67)+1.7*E67)/10000))))),) -> 0.00 | O67: Normal | P67: 0.00 | Q67: =+IFERROR(IF(O67="Alta",MROUND((M67*N67*N67*N67/P67)^(1/3),0.05),MROUND((M67*N67*N67/P67)^(1/2),0.05)),) -> 0.00
A68: -- | B68: Sin Selección
A69: -- | B69: Ninguno. | E69: =+VLOOKUP(B70,Hoja2!$B$5:$C$81,2,FALSE) -> 0 | F69: Ninguna | G69: =+VLOOKUP(F69,Hoja2!$J$3:$K$7,2,FALSE) -> 0 | H69: 0 | I69: 0 | J69: 0.00 | K69: 0 | L69: Central | M69: =+IF(L69="Perimetrica",(K69*0.5+0.125+(950/(E69+G69+H69+I69)))/20,IF(L69="Central",K69/20,K69/20)) -> 0.00 | N69: =+IFERROR(IF(L69="Perimetrica",(K69*0.5+0.125+(950/(E69+G69+H69+I69)))/(3/(SQRT((1.4*(G69+H69+I69)+1.7*E69)/10000))),IF(L69="Central",J69/(4/(SQRT((1.4*(G69+H69+I69)+1.7*E69)/10000))),1.4*2*J69/(4/(SQRT((1.4*(G69+H69+I69)+1.7*E69)/10000))))),) -> 0.00 | O69: Normal | P69: 0.00 | Q69: =+IFERROR(IF(O69="Alta",MROUND((M69*N69*N69*N69/P69)^(1/3),0.05),MROUND((M69*N69*N69/P69)^(1/2),0.05)),) -> 0.00
A70: -- | B70: Sin Selección
A71: -- | B71: Ninguno. | E71: =+VLOOKUP(B72,Hoja2!$B$5:$C$81,2,FALSE) -> 0 | F71: Ninguna | G71: =+VLOOKUP(F71,Hoja2!$J$3:$K$7,2,FALSE) -> 0 | H71: 0 | I71: 0 | J71: 0.00 | K71: 0 | L71: Central | M71: =+IF(L71="Perimetrica",(K71*0.5+0.125+(950/(E71+G71+H71+I71)))/20,IF(L71="Central",K71/20,K71/20)) -> 0.00 | N71: =+IFERROR(IF(L71="Perimetrica",(K71*0.5+0.125+(950/(E71+G71+H71+I71)))/(3/(SQRT((1.4*(G71+H71+I71)+1.7*E71)/10000))),IF(L71="Central",J71/(4/(SQRT((1.4*(G71+H71+I71)+1.7*E71)/10000))),1.4*2*J71/(4/(SQRT((1.4*(G71+H71+I71)+1.7*E71)/10000))))),) -> 0.00 | O71: Normal | P71: 0.00 | Q71: =+IFERROR(IF(O71="Alta",MROUND((M71*N71*N71*N71/P71)^(1/3),0.05),MROUND((M71*N71*N71/P71)^(1/2),0.05)),) -> 0.00
A72: -- | B72: Sin Selección
A73: -- | B73: Ninguno. | E73: =+VLOOKUP(B74,Hoja2!$B$5:$C$81,2,FALSE) -> 0 | F73: Ninguna | G73: =+VLOOKUP(F73,Hoja2!$J$3:$K$7,2,FALSE) -> 0 | H73: 0 | I73: 0 | J73: 0.00 | K73: 0 | L73: Central | M73: =+IF(L73="Perimetrica",(K73*0.5+0.125+(950/(E73+G73+H73+I73)))/20,IF(L73="Central",K73/20,K73/20)) -> 0.00 | N73: =+IFERROR(IF(L73="Perimetrica",(K73*0.5+0.125+(950/(E73+G73+H73+I73)))/(3/(SQRT((1.4*(G73+H73+I73)+1.7*E73)/10000))),IF(L73="Central",J73/(4/(SQRT((1.4*(G73+H73+I73)+1.7*E73)/10000))),1.4*2*J73/(4/(SQRT((1.4*(G73+H73+I73)+1.7*E73)/10000))))),) -> 0.00 | O73: Normal | P73: 0.00 | Q73: =+IFERROR(IF(O73="Alta",MROUND((M73*N73*N73*N73/P73)^(1/3),0.05),MROUND((M73*N73*N73/P73)^(1/2),0.05)),) -> 0.00
A74: -- | B74: Sin Selección
A75: -- | B75: Ninguno. | E75: =+VLOOKUP(B76,Hoja2!$B$5:$C$81,2,FALSE) -> 0 | F75: Ninguna | G75: =+VLOOKUP(F75,Hoja2!$J$3:$K$7,2,FALSE) -> 0 | H75: 0 | I75: 0 | J75: 0.00 | K75: 0 | L75: Central | M75: =+IF(L75="Perimetrica",(K75*0.5+0.125+(950/(E75+G75+H75+I75)))/20,IF(L75="Central",K75/20,K75/20)) -> 0.00 | N75: 0.00 | O75: Normal | P75: 0.00 | Q75: =+IFERROR(IF(O75="Alta",MROUND((M75*N75*N75*N75/P75)^(1/3),0.05),MROUND((M75*N75*N75/P75)^(1/2),0.05)),) -> 0.00
A76: -- | B76: Sin Selección
A77: -- | B77: Ninguno. | E77: =+VLOOKUP(B78,Hoja2!$B$5:$C$81,2,FALSE) -> 0 | F77: Ninguna | G77: =+VLOOKUP(F77,Hoja2!$J$3:$K$7,2,FALSE) -> 0 | H77: 0 | I77: 0 | J77: 0.00 | K77: 0 | L77: Central | M77: =+IF(L77="Perimetrica",(K77*0.5+0.125+(950/(E77+G77+H77+I77)))/20,IF(L77="Central",K77/20,K77/20)) -> 0.00 | N77: 0.00 | O77: Normal | P77: 0.00 | Q77: =+IFERROR(IF(O77="Alta",MROUND((M77*N77*N77*N77/P77)^(1/3),0.05),MROUND((M77*N77*N77/P77)^(1/2),0.05)),) -> 0.00
A78: -- | B78: Sin Selección
A79: -- | B79: Ninguno. | E79: =+VLOOKUP(B80,Hoja2!$B$5:$C$81,2,FALSE) -> 0 | F79: Ninguna | G79: =+VLOOKUP(F79,Hoja2!$J$3:$K$7,2,FALSE) -> 0 | H79: 0 | I79: 0 | J79: 0.00 | K79: 0 | L79: Central | M79: =+IF(L79="Perimetrica",(K79*0.5+0.125+(950/(E79+G79+H79+I79)))/20,IF(L79="Central",K79/20,K79/20)) -> 0.00 | N79: 0.00 | O79: Normal | P79: 0.00 | Q79: =+IFERROR(IF(O79="Alta",MROUND((M79*N79*N79*N79/P79)^(1/3),0.05),MROUND((M79*N79*N79/P79)^(1/2),0.05)),) -> 0.00
A80: -- | B80: Sin Selección
A81: -- | B81: Ninguno. | E81: =+VLOOKUP(B82,Hoja2!$B$5:$C$81,2,FALSE) -> 0 | F81: Ninguna | G81: =+VLOOKUP(F81,Hoja2!$J$3:$K$7,2,FALSE) -> 0 | H81: 0 | I81: 0 | J81: 0.00 | K81: 0 | L81: Central | M81: =+IF(L81="Perimetrica",(K81*0.5+0.125+(950/(E81+G81+H81+I81)))/20,IF(L81="Central",K81/20,K81/20)) -> 0.00 | N81: 0.00 | O81: Normal | P81: 0.00 | Q81: =+IFERROR(IF(O81="Alta",MROUND((M81*N81*N81*N81/P81)^(1/3),0.05),MROUND((M81*N81*N81/P81)^(1/2),0.05)),) -> 0.00
A82: -- | B82: Sin Selección
A83: -- | B83: Ninguno. | E83: =+VLOOKUP(B84,Hoja2!$B$5:$C$81,2,FALSE) -> 0 | F83: Ninguna | G83: =+VLOOKUP(F83,Hoja2!$J$3:$K$7,2,FALSE) -> 0 | H83: 0 | I83: 0 | J83: 0.00 | K83: 0 | L83: Central | M83: =+IF(L83="Perimetrica",(K83*0.5+0.125+(950/(E83+G83+H83+I83)))/20,IF(L83="Central",K83/20,K83/20)) -> 0.00 | N83: 0.00 | O83: Normal | P83: 0.00 | Q83: =+IFERROR(IF(O83="Alta",MROUND((M83*N83*N83*N83/P83)^(1/3),0.05),MROUND((M83*N83*N83/P83)^(1/2),0.05)),) -> 0.00
A84: -- | B84: Sin Selección
A85: -- | B85: Ninguno. | E85: =+VLOOKUP(B86,Hoja2!$B$5:$C$81,2,FALSE) -> 0 | F85: Ninguna | G85: =+VLOOKUP(F85,Hoja2!$J$3:$K$7,2,FALSE) -> 0 | H85: 0 | I85: 0 | J85: 0.00 | K85: 0 | L85: Central | M85: =+IF(L85="Perimetrica",(K85*0.5+0.125+(950/(E85+G85+H85+I85)))/20,IF(L85="Central",K85/20,K85/20)) -> 0.00 | N85: 0.00 | O85: Normal | P85: 0.00 | Q85: =+IFERROR(IF(O85="Alta",MROUND((M85*N85*N85*N85/P85)^(1/3),0.05),MROUND((M85*N85*N85/P85)^(1/2),0.05)),) -> 0.00
A86: -- | B86: Sin Selección
A87: -- | B87: Ninguno. | E87: =+VLOOKUP(B88,Hoja2!$B$5:$C$81,2,FALSE) -> 0 | F87: Ninguna | G87: =+VLOOKUP(F87,Hoja2!$J$3:$K$7,2,FALSE) -> 0 | H87: 0 | I87: 0 | J87: 0.00 | K87: 0 | L87: Central | M87: =+IF(L87="Perimetrica",(K87*0.5+0.125+(950/(E87+G87+H87+I87)))/20,IF(L87="Central",K87/20,K87/20)) -> 0.00 | N87: 0.00 | O87: Normal | P87: 0.00 | Q87: =+IFERROR(IF(O87="Alta",MROUND((M87*N87*N87*N87/P87)^(1/3),0.05),MROUND((M87*N87*N87/P87)^(1/2),0.05)),) -> 0.00
A88: -- | B88: Sin Selección
A89: -- | B89: Hoteles. | E89: =+VLOOKUP(B90,Hoja2!$B$5:$C$81,2,FALSE) -> 200 | F89: Ninguna | G89: =+VLOOKUP(F89,Hoja2!$J$3:$K$7,2,FALSE) -> 0 | H89: 0 | I89: 0 | J89: 0.00 | K89: 0 | L89: Central | M89: =+IF(L89="Perimetrica",(K89*0.5+0.125+(950/(E89+G89+H89+I89)))/20,IF(L89="Central",K89/20,K89/20)) -> 0.00 | N89: 0.00 | O89: Normal | P89: 0.00 | Q89: =+IFERROR(IF(O89="Alta",MROUND((M89*N89*N89*N89/P89)^(1/3),0.05),MROUND((M89*N89*N89/P89)^(1/2),0.05)),) -> 0.00
A90: -- | B90: Cuartos..
A92: NOTA: Editar solo las celdas que contiene el texto de color Azul, para obtener la dimensiones finales de las vigas debemos de ingresar el valor del ancho de la viga deseada en la penultima columna, y automaticamente se generara el valor de la altura de la viga en la ultima columna.
A95: 02 | B95: PREDIMENSIONAMIENTO DE COLUMNAS
B97: La tabla muestra los valores de P y n para el predimensionamiento de columnas, Pg es el peso total de cargas de gravedad
B99: TIPO C-1 | D99: Columna | G99: P = | H99: 1.10 | I99: Pg
B100: Primeros pisos | D100: Interior | G100: n = | H100: 0.30
B101: TIPO C-1'' | D101: Columna | G101: P = | H101: 1.10 | I101: Pg
B102: 4 ultimos pisos | D102: Interior | G102: n = | H102: 0.25
B103: TIPO C-2 Y | D103: Comunas extremas de | G103: P = | H103: 1.25 | I103: Pg
B104: TIPO C-3 | D104: porticos interiores | G104: n = | H104: 0.25
B105: TIPO C-4 | D105: Columnas de Esquina | G105: P = | H105: 1.50 | I105: Pg
G106: n = | H106: 0.20
B108: Según ensayos en Japon, tenemos que:
D110: n = P / ( f'c*b*D ) | G110: (1)
C112: n > 1/3 | E112: Falla fragil por aplastamiento
C114: n < 1/3 | E114: Falla ductil
B116: Las columnas se predimensionan con:
D118: bD = P / ( n*f'c ) | G118: (2)
B120: Donde:
B122: D = | C122: Dimension de seccion en la direccion de sismo | J122: P = | K122: Carga total que soporta la columna
B123: b = | C123: Dimension de seccion en la otra direccion | J123: f'c = | K123: Resistencia del concreto a la compresion
B124: n = | C124: Valor que depende del tipo de columna | J124: f'c = | K124: 350 | M124: kg/cm2
B126: A partir de la ecuacion (2), obtendremos área de las columnas, para distintos usos:
N127: cm2 | O127: m | P127: m | Q127: m
A128: Bloque | B128: Carga viva minima repartida (E020) | F128: Espesor aligerado | H128: Acabado | I128: Tabique | J128: Peso de | K128: Peso de | L128: Area trib. | M128: Tipo de | N128: Area de | O128: Columna | P128: Ancho | Q128: Largo
A129: Eje | B129: Ocupacion o uso | E129: kg/m2 | F129: Altura | G129: kg/m2 | H129: kg/m2 | I129: kg/m2 | J129: vigas | K129: columnas | L129: (m2) | M129: Columna | N129: Columna | O129: cuadrada | P129: D (m) | Q129: b (m)
A130: Block-A | B130: Colegios. | E130: =+VLOOKUP(B131,Hoja2!$B$5:$C$81,2,FALSE) -> 250 | F130: 0.25 m | G130: =+VLOOKUP(F130,Hoja2!$J$3:$K$7,2,FALSE) -> 350 | H130: 100 | I130: 120 | J130: 100 | K130: 60 | L130: 27.4 | M130: C-2 | N130: =+IFERROR(IF(M130="Ninguno",0,IF(M130="C-1",(E130+G130+H130+I130+J130+K130)*L130*1.1*10/(0.3*$K$124),IF(M130="C-1'",(E130+G130+H130+I130+J130+K130)*L130*1*10/(0.3*$K$124),IF(M130="C-1''",(E130+G130+H130+I130+J130+K130)*L130*1.1*10/(0.25*$K$124),IF(M130="C-2",(E130+G130+H130+I130+J130+K130)*L130*1.25*10/(0.25*$K$124),IF(M130="C-3",(E130+G130+H130+I130+J130+K130)*L130*1.25*10/(0.25*$K$124),IF(M130="C-4",(E130+G130+H130+I130+J130+K130)*L130*1.5*10/(0.2*$K$124),0))))))),) -> 3836 | O130: =+IFERROR(MROUND(SQRT(N130)/100,0.05),) -> 0.60 | P130: 0.80 | Q130: =+IFERROR(MROUND((N130/(P130*100))/100,0.05),) -> 0.50
A131: B-4 | B131: Aulas
A132: -- | B132: Ninguno. | E132: =+VLOOKUP(B133,Hoja2!$B$5:$C$81,2,FALSE) -> 0 | F132: Ninguna | G132: =+VLOOKUP(F132,Hoja2!$J$3:$K$7,2,FALSE) -> 0 | M132: Ninguno | N132: =+IFERROR(IF(M132="Ninguno",0,IF(M132="C-1",(E132+G132+H132+I132+J132+K132)*L132*1.1*10/(0.3*$K$124),IF(M132="C-1'",(E132+G132+H132+I132+J132+K132)*L132*1*10/(0.3*$K$124),IF(M132="C-1''",(E132+G132+H132+I132+J132+K132)*L132*1.1*10/(0.25*$K$124),IF(M132="C-2",(E132+G132+H132+I132+J132+K132)*L132*1.25*10/(0.25*$K$124),IF(M132="C-3",(E132+G132+H132+I132+J132+K132)*L132*1.25*10/(0.25*$K$124),IF(M132="C-4",(E132+G132+H132+I132+J132+K132)*L132*1.5*10/(0.2*$K$124),0))))))),) -> 0 | O132: =+IFERROR(MROUND(SQRT(N132)/100,0.05),) -> 0.00 | Q132: =+IFERROR(MROUND((N132/(P132*100))/100,0.05),) -> 0.00
A133: -- | B133: Sin Selección
A134: -- | B134: Ninguno. | E134: =+VLOOKUP(B135,Hoja2!$B$5:$C$81,2,FALSE) -> 0 | F134: Ninguna | G134: =+VLOOKUP(F134,Hoja2!$J$3:$K$7,2,FALSE) -> 0 | M134: Ninguno | N134: =+IFERROR(IF(M134="Ninguno",0,IF(M134="C-1",(E134+G134+H134+I134+J134+K134)*L134*1.1*10/(0.3*$K$124),IF(M134="C-1'",(E134+G134+H134+I134+J134+K134)*L134*1*10/(0.3*$K$124),IF(M134="C-1''",(E134+G134+H134+I134+J134+K134)*L134*1.1*10/(0.25*$K$124),IF(M134="C-2",(E134+G134+H134+I134+J134+K134)*L134*1.25*10/(0.25*$K$124),IF(M134="C-3",(E134+G134+H134+I134+J134+K134)*L134*1.25*10/(0.25*$K$124),IF(M134="C-4",(E134+G134+H134+I134+J134+K134)*L134*1.5*10/(0.2*$K$124),0))))))),) -> 0 | O134: =+IFERROR(MROUND(SQRT(N134)/100,0.05),) -> 0.00 | Q134: =+IFERROR(MROUND((N134/(P134*100))/100,0.05),) -> 0.00
A135: -- | B135: Sin Selección
A136: -- | B136: Ninguno. | E136: =+VLOOKUP(B137,Hoja2!$B$5:$C$81,2,FALSE) -> 0 | F136: Ninguna | G136: =+VLOOKUP(F136,Hoja2!$J$3:$K$7,2,FALSE) -> 0 | M136: Ninguno | N136: =+IFERROR(IF(M136="Ninguno",0,IF(M136="C-1",(E136+G136+H136+I136+J136+K136)*L136*1.1*10/(0.3*$K$124),IF(M136="C-1'",(E136+G136+H136+I136+J136+K136)*L136*1*10/(0.3*$K$124),IF(M136="C-1''",(E136+G136+H136+I136+J136+K136)*L136*1.1*10/(0.25*$K$124),IF(M136="C-2",(E136+G136+H136+I136+J136+K136)*L136*1.25*10/(0.25*$K$124),IF(M136="C-3",(E136+G136+H136+I136+J136+K136)*L136*1.25*10/(0.25*$K$124),IF(M136="C-4",(E136+G136+H136+I136+J136+K136)*L136*1.5*10/(0.2*$K$124),0))))))),) -> 0 | O136: =+IFERROR(MROUND(SQRT(N136)/100,0.05),) -> 0.00 | Q136: =+IFERROR(MROUND((N136/(P136*100))/100,0.05),) -> 0.00
A137: -- | B137: Sin Selección
A138: -- | B138: Ninguno. | E138: =+VLOOKUP(B139,Hoja2!$B$5:$C$81,2,FALSE) -> 0 | F138: Ninguna | G138: =+VLOOKUP(F138,Hoja2!$J$3:$K$7,2,FALSE) -> 0 | M138: Ninguno | N138: =+IFERROR(IF(M138="Ninguno",0,IF(M138="C-1",(E138+G138+H138+I138+J138+K138)*L138*1.1*10/(0.3*$K$124),IF(M138="C-1'",(E138+G138+H138+I138+J138+K138)*L138*1*10/(0.3*$K$124),IF(M138="C-1''",(E138+G138+H138+I138+J138+K138)*L138*1.1*10/(0.25*$K$124),IF(M138="C-2",(E138+G138+H138+I138+J138+K138)*L138*1.25*10/(0.25*$K$124),IF(M138="C-3",(E138+G138+H138+I138+J138+K138)*L138*1.25*10/(0.25*$K$124),IF(M138="C-4",(E138+G138+H138+I138+J138+K138)*L138*1.5*10/(0.2*$K$124),0))))))),) -> 0 | O138: =+IFERROR(MROUND(SQRT(N138)/100,0.05),) -> 0.00 | Q138: =+IFERROR(MROUND((N138/(P138*100))/100,0.05),) -> 0.00
A139: -- | B139: Sin Selección
A140: -- | B140: Ninguno. | E140: =+VLOOKUP(B141,Hoja2!$B$5:$C$81,2,FALSE) -> 0 | F140: Ninguna | G140: =+VLOOKUP(F140,Hoja2!$J$3:$K$7,2,FALSE) -> 0 | M140: Ninguno | N140: =+IFERROR(IF(M140="Ninguno",0,IF(M140="C-1",(E140+G140+H140+I140+J140+K140)*L140*1.1*10/(0.3*$K$124),IF(M140="C-1'",(E140+G140+H140+I140+J140+K140)*L140*1*10/(0.3*$K$124),IF(M140="C-1''",(E140+G140+H140+I140+J140+K140)*L140*1.1*10/(0.25*$K$124),IF(M140="C-2",(E140+G140+H140+I140+J140+K140)*L140*1.25*10/(0.25*$K$124),IF(M140="C-3",(E140+G140+H140+I140+J140+K140)*L140*1.25*10/(0.25*$K$124),IF(M140="C-4",(E140+G140+H140+I140+J140+K140)*L140*1.5*10/(0.2*$K$124),0))))))),) -> 0 | O140: =+IFERROR(MROUND(SQRT(N140)/100,0.05),) -> 0.00 | Q140: =+IFERROR(MROUND((N140/(P140*100))/100,0.05),) -> 0.00
A141: -- | B141: Sin Selección
A142: -- | B142: Ninguno. | E142: =+VLOOKUP(B143,Hoja2!$B$5:$C$81,2,FALSE) -> 0 | F142: Ninguna | G142: =+VLOOKUP(F142,Hoja2!$J$3:$K$7,2,FALSE) -> 0 | M142: Ninguno | N142: =+IFERROR(IF(M142="Ninguno",0,IF(M142="C-1",(E142+G142+H142+I142+J142+K142)*L142*1.1*10/(0.3*$K$124),IF(M142="C-1'",(E142+G142+H142+I142+J142+K142)*L142*1*10/(0.3*$K$124),IF(M142="C-1''",(E142+G142+H142+I142+J142+K142)*L142*1.1*10/(0.25*$K$124),IF(M142="C-2",(E142+G142+H142+I142+J142+K142)*L142*1.25*10/(0.25*$K$124),IF(M142="C-3",(E142+G142+H142+I142+J142+K142)*L142*1.25*10/(0.25*$K$124),IF(M142="C-4",(E142+G142+H142+I142+J142+K142)*L142*1.5*10/(0.2*$K$124),0))))))),) -> 0 | O142: =+IFERROR(MROUND(SQRT(N142)/100,0.05),) -> 0.00 | Q142: =+IFERROR(MROUND((N142/(P142*100))/100,0.05),) -> 0.00
A143: -- | B143: Sin Selección
A144: -- | B144: Ninguno. | E144: =+VLOOKUP(B145,Hoja2!$B$5:$C$81,2,FALSE) -> 0 | F144: Ninguna | G144: =+VLOOKUP(F144,Hoja2!$J$3:$K$7,2,FALSE) -> 0 | M144: Ninguno | N144: =+IFERROR(IF(M144="Ninguno",0,IF(M144="C-1",(E144+G144+H144+I144+J144+K144)*L144*1.1*10/(0.3*$K$124),IF(M144="C-1'",(E144+G144+H144+I144+J144+K144)*L144*1*10/(0.3*$K$124),IF(M144="C-1''",(E144+G144+H144+I144+J144+K144)*L144*1.1*10/(0.25*$K$124),IF(M144="C-2",(E144+G144+H144+I144+J144+K144)*L144*1.25*10/(0.25*$K$124),IF(M144="C-3",(E144+G144+H144+I144+J144+K144)*L144*1.25*10/(0.25*$K$124),IF(M144="C-4",(E144+G144+H144+I144+J144+K144)*L144*1.5*10/(0.2*$K$124),0))))))),) -> 0 | O144: =+IFERROR(MROUND(SQRT(N144)/100,0.05),) -> 0.00 | Q144: =+IFERROR(MROUND((N144/(P144*100))/100,0.05),) -> 0.00
A145: -- | B145: Sin Selección
A146: -- | B146: Ninguno. | E146: =+VLOOKUP(B147,Hoja2!$B$5:$C$81,2,FALSE) -> 0 | F146: Ninguna | G146: =+VLOOKUP(F146,Hoja2!$J$3:$K$7,2,FALSE) -> 0 | M146: Ninguno | N146: =+IFERROR(IF(M146="Ninguno",0,IF(M146="C-1",(E146+G146+H146+I146+J146+K146)*L146*1.1*10/(0.3*$K$124),IF(M146="C-1'",(E146+G146+H146+I146+J146+K146)*L146*1*10/(0.3*$K$124),IF(M146="C-1''",(E146+G146+H146+I146+J146+K146)*L146*1.1*10/(0.25*$K$124),IF(M146="C-2",(E146+G146+H146+I146+J146+K146)*L146*1.25*10/(0.25*$K$124),IF(M146="C-3",(E146+G146+H146+I146+J146+K146)*L146*1.25*10/(0.25*$K$124),IF(M146="C-4",(E146+G146+H146+I146+J146+K146)*L146*1.5*10/(0.2*$K$124),0))))))),) -> 0 | O146: =+IFERROR(MROUND(SQRT(N146)/100,0.05),) -> 0.00 | Q146: =+IFERROR(MROUND((N146/(P146*100))/100,0.05),) -> 0.00
A147: -- | B147: Sin Selección
A148: -- | B148: Ninguno. | E148: =+VLOOKUP(B149,Hoja2!$B$5:$C$81,2,FALSE) -> 0 | F148: Ninguna | G148: =+VLOOKUP(F148,Hoja2!$J$3:$K$7,2,FALSE) -> 0 | M148: Ninguno | N148: =+IFERROR(IF(M148="Ninguno",0,IF(M148="C-1",(E148+G148+H148+I148+J148+K148)*L148*1.1*10/(0.3*$K$124),IF(M148="C-1'",(E148+G148+H148+I148+J148+K148)*L148*1*10/(0.3*$K$124),IF(M148="C-1''",(E148+G148+H148+I148+J148+K148)*L148*1.1*10/(0.25*$K$124),IF(M148="C-2",(E148+G148+H148+I148+J148+K148)*L148*1.25*10/(0.25*$K$124),IF(M148="C-3",(E148+G148+H148+I148+J148+K148)*L148*1.25*10/(0.25*$K$124),IF(M148="C-4",(E148+G148+H148+I148+J148+K148)*L148*1.5*10/(0.2*$K$124),0))))))),) -> 0 | O148: =+IFERROR(MROUND(SQRT(N148)/100,0.05),) -> 0.00 | Q148: =+IFERROR(MROUND((N148/(P148*100))/100,0.05),) -> 0.00
A149: -- | B149: Sin Selección
A150: -- | B150: Ninguno. | E150: =+VLOOKUP(B151,Hoja2!$B$5:$C$81,2,FALSE) -> 0 | F150: Ninguna | G150: =+VLOOKUP(F150,Hoja2!$J$3:$K$7,2,FALSE) -> 0 | M150: Ninguno | N150: =+IFERROR(IF(M150="Ninguno",0,IF(M150="C-1",(E150+G150+H150+I150+J150+K150)*L150*1.1*10/(0.3*$K$124),IF(M150="C-1'",(E150+G150+H150+I150+J150+K150)*L150*1*10/(0.3*$K$124),IF(M150="C-1''",(E150+G150+H150+I150+J150+K150)*L150*1.1*10/(0.25*$K$124),IF(M150="C-2",(E150+G150+H150+I150+J150+K150)*L150*1.25*10/(0.25*$K$124),IF(M150="C-3",(E150+G150+H150+I150+J150+K150)*L150*1.25*10/(0.25*$K$124),IF(M150="C-4",(E150+G150+H150+I150+J150+K150)*L150*1.5*10/(0.2*$K$124),0))))))),) -> 0 | O150: =+IFERROR(MROUND(SQRT(N150)/100,0.05),) -> 0.00 | Q150: =+IFERROR(MROUND((N150/(P150*100))/100,0.05),) -> 0.00
A151: -- | B151: Sin Selección
A152: -- | B152: Ninguno. | E152: =+VLOOKUP(B153,Hoja2!$B$5:$C$81,2,FALSE) -> 0 | F152: Ninguna | G152: =+VLOOKUP(F152,Hoja2!$J$3:$K$7,2,FALSE) -> 0 | M152: Ninguno | N152: =+IFERROR(IF(M152="Ninguno",0,IF(M152="C-1",(E152+G152+H152+I152+J152+K152)*L152*1.1*10/(0.3*$K$124),IF(M152="C-1'",(E152+G152+H152+I152+J152+K152)*L152*1*10/(0.3*$K$124),IF(M152="C-1''",(E152+G152+H152+I152+J152+K152)*L152*1.1*10/(0.25*$K$124),IF(M152="C-2",(E152+G152+H152+I152+J152+K152)*L152*1.25*10/(0.25*$K$124),IF(M152="C-3",(E152+G152+H152+I152+J152+K152)*L152*1.25*10/(0.25*$K$124),IF(M152="C-4",(E152+G152+H152+I152+J152+K152)*L152*1.5*10/(0.2*$K$124),0))))))),) -> 0 | O152: =+IFERROR(MROUND(SQRT(N152)/100,0.05),) -> 0.00 | Q152: =+IFERROR(MROUND((N152/(P152*100))/100,0.05),) -> 0.00
A153: -- | B153: Sin Selección
A154: -- | B154: Ninguno. | E154: =+VLOOKUP(B155,Hoja2!$B$5:$C$81,2,FALSE) -> 0 | F154: Ninguna | G154: =+VLOOKUP(F154,Hoja2!$J$3:$K$7,2,FALSE) -> 0 | M154: Ninguno | N154: =+IFERROR(IF(M154="Ninguno",0,IF(M154="C-1",(E154+G154+H154+I154+J154+K154)*L154*1.1*10/(0.3*$K$124),IF(M154="C-1'",(E154+G154+H154+I154+J154+K154)*L154*1*10/(0.3*$K$124),IF(M154="C-1''",(E154+G154+H154+I154+J154+K154)*L154*1.1*10/(0.25*$K$124),IF(M154="C-2",(E154+G154+H154+I154+J154+K154)*L154*1.25*10/(0.25*$K$124),IF(M154="C-3",(E154+G154+H154+I154+J154+K154)*L154*1.25*10/(0.25*$K$124),IF(M154="C-4",(E154+G154+H154+I154+J154+K154)*L154*1.5*10/(0.2*$K$124),0))))))),) -> 0 | O154: =+IFERROR(MROUND(SQRT(N154)/100,0.05),) -> 0.00 | Q154: =+IFERROR(MROUND((N154/(P154*100))/100,0.05),) -> 0.00
A155: -- | B155: Sin Selección
A156: -- | B156: Ninguno. | E156: =+VLOOKUP(B157,Hoja2!$B$5:$C$81,2,FALSE) -> 0 | F156: Ninguna | G156: =+VLOOKUP(F156,Hoja2!$J$3:$K$7,2,FALSE) -> 0 | M156: Ninguno | N156: =+IFERROR(IF(M156="Ninguno",0,IF(M156="C-1",(E156+G156+H156+I156+J156+K156)*L156*1.1*10/(0.3*$K$124),IF(M156="C-1'",(E156+G156+H156+I156+J156+K156)*L156*1*10/(0.3*$K$124),IF(M156="C-1''",(E156+G156+H156+I156+J156+K156)*L156*1.1*10/(0.25*$K$124),IF(M156="C-2",(E156+G156+H156+I156+J156+K156)*L156*1.25*10/(0.25*$K$124),IF(M156="C-3",(E156+G156+H156+I156+J156+K156)*L156*1.25*10/(0.25*$K$124),IF(M156="C-4",(E156+G156+H156+I156+J156+K156)*L156*1.5*10/(0.2*$K$124),0))))))),) -> 0 | O156: =+IFERROR(MROUND(SQRT(N156)/100,0.05),) -> 0.00 | Q156: =+IFERROR(MROUND((N156/(P156*100))/100,0.05),) -> 0.00
A157: -- | B157: Sin Selección
A158: -- | B158: Ninguno. | E158: =+VLOOKUP(B159,Hoja2!$B$5:$C$81,2,FALSE) -> 0 | F158: Ninguna | G158: =+VLOOKUP(F158,Hoja2!$J$3:$K$7,2,FALSE) -> 0 | M158: Ninguno | N158: =+IFERROR(IF(M158="Ninguno",0,IF(M158="C-1",(E158+G158+H158+I158+J158+K158)*L158*1.1*10/(0.3*$K$124),IF(M158="C-1'",(E158+G158+H158+I158+J158+K158)*L158*1*10/(0.3*$K$124),IF(M158="C-1''",(E158+G158+H158+I158+J158+K158)*L158*1.1*10/(0.25*$K$124),IF(M158="C-2",(E158+G158+H158+I158+J158+K158)*L158*1.25*10/(0.25*$K$124),IF(M158="C-3",(E158+G158+H158+I158+J158+K158)*L158*1.25*10/(0.25*$K$124),IF(M158="C-4",(E158+G158+H158+I158+J158+K158)*L158*1.5*10/(0.2*$K$124),0))))))),) -> 0 | O158: =+IFERROR(MROUND(SQRT(N158)/100,0.05),) -> 0.00 | Q158: =+IFERROR(MROUND((N158/(P158*100))/100,0.05),) -> 0.00
A159: -- | B159: Sin Selección
A160: -- | B160: Ninguno. | E160: =+VLOOKUP(B161,Hoja2!$B$5:$C$81,2,FALSE) -> 0 | F160: Ninguna | G160: =+VLOOKUP(F160,Hoja2!$J$3:$K$7,2,FALSE) -> 0 | M160: Ninguno | N160: =+IFERROR(IF(M160="Ninguno",0,IF(M160="C-1",(E160+G160+H160+I160+J160+K160)*L160*1.1*10/(0.3*$K$124),IF(M160="C-1'",(E160+G160+H160+I160+J160+K160)*L160*1*10/(0.3*$K$124),IF(M160="C-1''",(E160+G160+H160+I160+J160+K160)*L160*1.1*10/(0.25*$K$124),IF(M160="C-2",(E160+G160+H160+I160+J160+K160)*L160*1.25*10/(0.25*$K$124),IF(M160="C-3",(E160+G160+H160+I160+J160+K160)*L160*1.25*10/(0.25*$K$124),IF(M160="C-4",(E160+G160+H160+I160+J160+K160)*L160*1.5*10/(0.2*$K$124),0))))))),) -> 0 | O160: =+IFERROR(MROUND(SQRT(N160)/100,0.05),) -> 0.00 | Q160: =+IFERROR(MROUND((N160/(P160*100))/100,0.05),) -> 0.00
A161: -- | B161: Sin Selección
A162: -- | B162: Ninguno. | E162: =+VLOOKUP(B163,Hoja2!$B$5:$C$81,2,FALSE) -> 0 | F162: Ninguna | G162: =+VLOOKUP(F162,Hoja2!$J$3:$K$7,2,FALSE) -> 0 | M162: Ninguno | N162: =+IFERROR(IF(M162="Ninguno",0,IF(M162="C-1",(E162+G162+H162+I162+J162+K162)*L162*1.1*10/(0.3*$K$124),IF(M162="C-1'",(E162+G162+H162+I162+J162+K162)*L162*1*10/(0.3*$K$124),IF(M162="C-1''",(E162+G162+H162+I162+J162+K162)*L162*1.1*10/(0.25*$K$124),IF(M162="C-2",(E162+G162+H162+I162+J162+K162)*L162*1.25*10/(0.25*$K$124),IF(M162="C-3",(E162+G162+H162+I162+J162+K162)*L162*1.25*10/(0.25*$K$124),IF(M162="C-4",(E162+G162+H162+I162+J162+K162)*L162*1.5*10/(0.2*$K$124),0))))))),) -> 0 | O162: =+IFERROR(MROUND(SQRT(N162)/100,0.05),) -> 0.00 | Q162: =+IFERROR(MROUND((N162/(P162*100))/100,0.05),) -> 0.00
A163: -- | B163: Sin Selección
A164: -- | B164: Ninguno. | E164: =+VLOOKUP(B165,Hoja2!$B$5:$C$81,2,FALSE) -> 0 | F164: Ninguna | G164: =+VLOOKUP(F164,Hoja2!$J$3:$K$7,2,FALSE) -> 0 | M164: Ninguno | N164: =+IFERROR(IF(M164="Ninguno",0,IF(M164="C-1",(E164+G164+H164+I164+J164+K164)*L164*1.1*10/(0.3*$K$124),IF(M164="C-1'",(E164+G164+H164+I164+J164+K164)*L164*1*10/(0.3*$K$124),IF(M164="C-1''",(E164+G164+H164+I164+J164+K164)*L164*1.1*10/(0.25*$K$124),IF(M164="C-2",(E164+G164+H164+I164+J164+K164)*L164*1.25*10/(0.25*$K$124),IF(M164="C-3",(E164+G164+H164+I164+J164+K164)*L164*1.25*10/(0.25*$K$124),IF(M164="C-4",(E164+G164+H164+I164+J164+K164)*L164*1.5*10/(0.2*$K$124),0))))))),) -> 0 | O164: =+IFERROR(MROUND(SQRT(N164)/100,0.05),) -> 0.00 | Q164: =+IFERROR(MROUND((N164/(P164*100))/100,0.05),) -> 0.00
A165: -- | B165: Sin Selección
A167: NOTA: Editar solo las celdas que contiene el texto de color Azul, para obtener la dimensiones finales de las columnas debemos de ingresar el valor del ancho de columna deseada en la penultima columna, y automaticamente se generara el valor de la altura de columna en la ultima columna.

Sheet Hoja2 (hidden)
J2: Altura
J3: Ninguna | K3: 0
J4: 0.17 m | K4: 280
B5: Sin Selección | C5: 0 | E5: Ninguno. | J5: 0.20 m | K5: 300
B6: Almacenaje. | E6: Almacenaje. | J6: 0.25 m | K6: 350
B7: Almacenaje | C7: 500 | E7: Baños. | J7: 0.30 m | K7: 420
E8: Bibliotecas.
B9: Baños. | E9: Colegios.
B10: Baños | C10: 200 | E10: Garajes.
E11: Hospitales.
B12: Bibliotecas. | E12: Hoteles.
B13: Salas de lectura | C13: 300 | E13: Industria.
B14: Salas de almacenaje estantes fijos | C14: 750 | E14: Carceles. | J14: Perimetrica
B15: Corredores y escaleras. | C15: 400 | E15: Asambleas. | J15: Central
E16: Oficinas. | J16: Voladizo
B17: Centros de Educación. | E17: Teatros.
B18: Aulas | C18: 250 | E18: Tiendas. | J18: Alta
B19: Talleres | C19: 350 | E19: Viviendas. | J19: Normal
B20: Auditorios | C20: 400
B21: Gimnasios, etc. | C21: 400
B22: Laboratorios | C22: 300
B23: Corredores y escaleras.. | C23: 400 | J23: P | K23: N
E24: 210 | I24: Ninguno | J24: 0 | K24: 0
B25: Garajes. | E25: 280 | I25: C-1 | J25: 1.1 | K25: 0.3
B26: Para vehículos de pasajeros | C26: 250 | E26: 350 | I26: C-1' | J26: 1 | K26: 0.3
B27: Para otros vehículos | C27: 350 | E27: 420 | I27: C-1'' | J27: 1.1 | K27: 0.25
E28: 490 | I28: C-2 | J28: 1.25 | K28: 0.25
B29: Hospitales. | E29: 560 | I29: C-3 | J29: 1.25 | K29: 0.25
B30: Salas de operación | C30: 300 | E30: 630 | I30: C-4 | J30: 1.5 | K30: 0.2
B31: Laboratorios | C31: 300 | E31: 700
B32: Zonas de servicio | C32: 300 | E32: 770
B33: Cuartos. | C33: 200 | E33: 840
B34: Corredores y escaleras... | C34: 400 | E34: 910
E35: 980
B36: Hoteles.
B37: Cuartos.. | C37: 200
B38: Salas públicas | C38: 300
B39: Almacenaje y servicios | C39: 500
B40: Corredores y escaleras . | C40: 400
B42: Industria.
B43: Industria | C43: 400
B45: Instituciones Penales.
B46: Celdas y habitaciones | C46: 200
B47: Zonas públicas. | C47: 300
B48: Corredores y escaleras .. | C48: 400 | E48: TIPO C-1 | G48: Columna | J48: P = | K48: 1.10 | L48: Pg
E49: Primeros pisos | G49: Interior | J49: n = | K49: 0.30
B50: Lugares de Asamblea. | E50: TIPO C-1'' | G50: Columna | J50: P = | K50: 1.10 | L50: Pg
B51: Con asientos fijos | C51: 300 | E51: 4 ultimos pisos | G51: Interior | J51: n = | K51: 0.25
B52: Con asientos movibles | C52: 400 | E52: TIPO C-2 Y | G52: Comunas extremas de | J52: P = | K52: 1.25 | L52: Pg
B53: Salones de baile | C53: 400 | E53: TIPO C-3 | G53: porticos interiores | J53: n = | K53: 0.25
B54: Restaurantes | C54: 400 | E54: TIPO C-4 | G54: Columnas de Esquina | J54: P = | K54: 1.50 | L54: Pg
B55: Museos | C55: 400 | J55: n = | K55: 0.20
B56: Gimnasios | C56: 400
B57: Vestíbulos de teatros. | C57: 400
B58: Vestíbulos de cines. | C58: 400
B59: Graderías y tribunas | C59: 500
B60: Corredores y escaleras … | C60: 500
B62: Oficinas.
B63: Exceptuando salas de archivo | C63: 250
B64: Exceptuando salas de computación | C64: 250
B65: Salas de archivo | C65: 500
B66: Salas de computación | C66: 250
B67: Corredores y escaleras . | C67: 400
B69: Teatros.
B70: Vestidores | C70: 200
B71: Cuarto de proyección | C71: 300
B72: Escenario | C72: 750
B73: Zonas públicas.. | C73: 400
B75: Tiendas.
B76: Tiendas | C76: 500
B77: Corredores y escaleras .. | C77: 500
B79: Viviendas.
B80: Viviendas | C80: 200
B81: Corredores y escaleras … | C81: 200
